[Event "Titled Tuesday Blitz January 03 Early 2023"]
[White "Renjith, Sravan"]
[Black "Aradhya, Garg"]
[WhiteFideId "4306783"]
[BlackFideId "25006746"]
[WhiteElo "2172"]
[BlackElo "2284"]
[Result "1/2-1/2"]
[Round "05"]
[TimeControl "180+2"]
[Date "2023.01.03"]
[WhiteClock "0:00:05"]
[BlackClock "0:00:14"]

1. d4 {[%clk 0:02:55]}  d5 {[%clk 0:03:00]} 2. Nf3 {[%clk 0:02:53]}  Nf6 {[%clk 0:02:59]} 3. Bf4 {[%clk 0:02:52]}  Bf5 {[%clk 0:02:57]} 4. e3 {[%clk 0:02:52]}  e6 {[%clk 0:02:57]} 5. c4 {[%clk 0:02:50]}  Bxb1 {[%clk 0:02:56]} 6. Rxb1 {[%clk 0:02:40]}  Bb4+ {[%clk 0:02:54]} 7. Ke2 {[%clk 0:02:40]}  dxc4 {[%clk 0:02:53]} 8. Qa4+ {[%clk 0:02:39]}  Nc6 {[%clk 0:02:53]} 9. Ne5 {[%clk 0:02:40]}  Nd5 {[%clk 0:02:51]} 10. Nxc6 {[%clk 0:02:37]}  Qd7 {[%clk 0:02:43]} 11. a3 {[%clk 0:02:10]}  Bd6 {[%clk 0:02:01]} 12. Bxd6 {[%clk 0:01:45]}  cxd6 {[%clk 0:02:02]} 13. Qxc4 {[%clk 0:01:41]}  Rc8 {[%clk 0:02:02]} 14. f3 {[%clk 0:01:14]}  Rxc6 {[%clk 0:02:00]} 15. Qd3 {[%clk 0:01:13]}  O-O {[%clk 0:01:35]} 16. Kf2 {[%clk 0:01:11]}  Rfc8 {[%clk 0:01:35]} 17. Be2 {[%clk 0:01:07]}  Rc2 {[%clk 0:01:35]} 18. g3 {[%clk 0:00:56]}  Qa4 {[%clk 0:01:21]} 19. e4 {[%clk 0:00:45]}  Ne7 {[%clk 0:01:06]} 20. Rhd1 {[%clk 0:00:36]}  d5 {[%clk 0:01:05]} 21. Rd2 {[%clk 0:00:32]}  dxe4 {[%clk 0:01:05]} 22. fxe4 {[%clk 0:00:31]}  Rxd2 {[%clk 0:01:05]} 23. Qxd2 {[%clk 0:00:32]}  Rd8 {[%clk 0:01:05]} 24. Rd1 {[%clk 0:00:31]}  Nc6 {[%clk 0:01:04]} 25. d5 {[%clk 0:00:29]}  Qxe4 {[%clk 0:00:37]} 26. dxc6 {[%clk 0:00:17]}  Rxd2 {[%clk 0:00:37]} 27. Rxd2 {[%clk 0:00:17]}  Qf5+ {[%clk 0:00:37]} 28. Ke1 {[%clk 0:00:09]}  Qa5 {[%clk 0:00:33]} 29. cxb7 {[%clk 0:00:06]}  Qb6 {[%clk 0:00:32]} 30. Bf3 {[%clk 0:00:05]}  g6 {[%clk 0:00:25]} 31. Rd3 {[%clk 0:00:03]}  Kg7 {[%clk 0:00:22]} 32. Ke2 {[%clk 0:00:04]}  Qxb2+ {[%clk 0:00:21]} 33. Ke3 {[%clk 0:00:04]}  Qb6+ {[%clk 0:00:20]} 34. Kd2 {[%clk 0:00:04]}  Qb2+ {[%clk 0:00:20]} 35. Kd1 {[%clk 0:00:04]}  Qb1+ {[%clk 0:00:18]} 36. Kd2 {[%clk 0:00:05]}  Qb2+ {[%clk 0:00:19]} 37. Kd1 {[%clk 0:00:05]}  Qb1+ {[%clk 0:00:19]} 38. Kd2 {[%clk 0:00:06]}  Qb6 {[%clk 0:00:19]} 39. Kc2 {[%clk 0:00:06]}  Qf2+ {[%clk 0:00:16]} 40. Kb3 {[%clk 0:00:06]}  Qb6+ {[%clk 0:00:15]} 41. Ka2 {[%clk 0:00:06]}  Qf2+ {[%clk 0:00:15]} 42. Kb1 {[%clk 0:00:06]}  Qb6+ {[%clk 0:00:14]} 43. Kc2 {[%clk 0:00:05]}  Qf2+ {[%clk 0:00:14]} 44. Kb3 {[%clk 0:00:05]}  Qb6+ {[%clk 0:00:14]} 45. Kc2 {[%clk 0:00:05]} 1/2-1/2


[Site "https://www.chess.com"]

[Event "Titled Tuesday Blitz January 03 Early 2023"]
[White "Klukin, Kirill"]
[Black "Janaszak, Dawid"]
[WhiteFideId "24199273"]
[BlackFideId "1119206"]
[WhiteElo "2390"]
[BlackElo "2316"]
[Result "0-1"]
[Round "05"]
[TimeControl "180+2"]
[Date "2023.01.03"]
[WhiteClock "0:00:51"]
[BlackClock "0:00:47"]

1. c4 {[%clk 0:03:00]}  e6 {[%clk 0:02:59]} 2. Nf3 {[%clk 0:02:59]}  d5 {[%clk 0:03:00]} 3. e3 {[%clk 0:02:59]}  Nf6 {[%clk 0:02:58]} 4. b3 {[%clk 0:02:59]}  Be7 {[%clk 0:02:55]} 5. Bb2 {[%clk 0:03:00]}  O-O {[%clk 0:02:55]} 6. Nc3 {[%clk 0:02:59]}  c5 {[%clk 0:02:54]} 7. cxd5 {[%clk 0:02:56]}  exd5 {[%clk 0:02:52]} 8. d3 {[%clk 0:02:55]}  Nc6 {[%clk 0:02:52]} 9. Be2 {[%clk 0:02:53]}  d4 {[%clk 0:02:53]} 10. exd4 {[%clk 0:02:50]}  cxd4 {[%clk 0:02:53]} 11. Nb1 {[%clk 0:02:50]}  Qa5+ {[%clk 0:02:40]} 12. Nbd2 {[%clk 0:02:49]}  Nd5 {[%clk 0:02:36]} 13. O-O {[%clk 0:02:46]}  Nc3 {[%clk 0:02:36]} 14. Bxc3 {[%clk 0:02:46]}  dxc3 {[%clk 0:02:35]} 15. Nc4 {[%clk 0:02:46]}  Qf5 {[%clk 0:02:28]} 16. Rc1 {[%clk 0:02:34]}  Bf6 {[%clk 0:02:27]} 17. Nd6 {[%clk 0:02:23]}  Qa5 {[%clk 0:02:19]} 18. Ne4 {[%clk 0:02:12]}  Be7 {[%clk 0:02:04]} 19. Nxc3 {[%clk 0:02:10]}  Rd8 {[%clk 0:01:58]} 20. Nd2 {[%clk 0:01:37]}  Nd4 {[%clk 0:01:53]} 21. Nc4 {[%clk 0:01:36]}  Qg5 {[%clk 0:01:53]} 22. Ne4 {[%clk 0:01:34]}  Qxc1 {[%clk 0:01:50]} 23. Bh5 {[%clk 0:01:11]}  Qxd1 {[%clk 0:01:47]} 24. Bxd1 {[%clk 0:01:12]}  Be6 {[%clk 0:01:44]} 25. Re1 {[%clk 0:01:12]}  Bb4 {[%clk 0:01:42]} 26. Re3 {[%clk 0:01:11]}  Bxc4 {[%clk 0:01:40]} 27. bxc4 {[%clk 0:01:11]}  Re8 {[%clk 0:01:34]} 28. Ba4 {[%clk 0:01:11]}  Re6 {[%clk 0:01:33]} 29. g4 {[%clk 0:01:08]}  f5 {[%clk 0:01:22]} 30. gxf5 {[%clk 0:01:04]}  Nxf5 {[%clk 0:01:23]} 31. Rh3 {[%clk 0:01:04]}  Nd6 {[%clk 0:01:19]} 32. Bd7 {[%clk 0:01:03]}  Rh6 {[%clk 0:01:08]} 33. Re3 {[%clk 0:00:54]}  Nxe4 {[%clk 0:01:05]} 34. Rxe4 {[%clk 0:00:55]}  Rf8 {[%clk 0:00:54]} 35. d4 {[%clk 0:00:51]}  Rhf6 {[%clk 0:00:52]} 36. Re2 {[%clk 0:00:51]}  Bc3 {[%clk 0:00:47]} 0-1


[Site "https://www.chess.com"]

[Event "Titled Tuesday Blitz January 03 Early 2023"]
[White "Salimova, Nurgyul"]
[Black "Diaz Villagran, Robert"]
[WhiteFideId "2915138"]
[BlackFideId "3404056"]
[WhiteElo "2391"]
[BlackElo "2315"]
[Result "1-0"]
[Round "05"]
[TimeControl "180+2"]
[Date "2023.01.03"]
[WhiteClock "0:00:13"]
[BlackClock "0:00:36"]

1. e4 {[%clk 0:03:00]}  e6 {[%clk 0:03:00]} 2. d4 {[%clk 0:02:59]}  d5 {[%clk 0:03:00]} 3. Nc3 {[%clk 0:02:58]}  Bb4 {[%clk 0:03:00]} 4. e5 {[%clk 0:02:55]}  Ne7 {[%clk 0:03:00]} 5. a3 {[%clk 0:02:50]}  Bxc3+ {[%clk 0:03:00]} 6. bxc3 {[%clk 0:02:51]}  c5 {[%clk 0:03:00]} 7. Qg4 {[%clk 0:02:51]}  Kf8 {[%clk 0:03:00]} 8. a4 {[%clk 0:02:46]}  Qa5 {[%clk 0:02:55]} 9. Bd2 {[%clk 0:02:43]}  Qc7 {[%clk 0:02:53]} 10. Nf3 {[%clk 0:02:32]}  Nbc6 {[%clk 0:02:25]} 11. Bd3 {[%clk 0:02:24]}  h6 {[%clk 0:02:20]} 12. h4 {[%clk 0:02:21]}  c4 {[%clk 0:02:05]} 13. Be2 {[%clk 0:02:19]}  b6 {[%clk 0:02:05]} 14. h5 {[%clk 0:02:17]}  Bd7 {[%clk 0:02:03]} 15. Qf4 {[%clk 0:02:07]}  Ke8 {[%clk 0:01:55]} 16. g4 {[%clk 0:02:05]}  Rf8 {[%clk 0:01:49]} 17. g5 {[%clk 0:02:03]}  Nf5 {[%clk 0:01:48]} 18. Nh4 {[%clk 0:01:58]}  Nce7 {[%clk 0:01:48]} 19. gxh6 {[%clk 0:01:49]}  Nxh6 {[%clk 0:01:10]} 20. Rg1 {[%clk 0:01:47]}  Rg8 {[%clk 0:01:07]} 21. Bc1 {[%clk 0:01:15]}  Nef5 {[%clk 0:00:30]} 22. Nxf5 {[%clk 0:01:14]}  Nxf5 {[%clk 0:00:29]} 23. Bg4 {[%clk 0:01:14]}  g6 {[%clk 0:00:20]} 24. Bxf5 {[%clk 0:01:07]}  exf5 {[%clk 0:00:20]} 25. e6 {[%clk 0:01:03]}  Qxf4 {[%clk 0:00:18]} 26. exd7+ {[%clk 0:01:03]}  Kxd7 {[%clk 0:00:18]} 27. Bxf4 {[%clk 0:01:03]}  gxh5 {[%clk 0:00:19]} 28. Rxg8 {[%clk 0:00:56]}  Rxg8 {[%clk 0:00:20]} 29. Ke2 {[%clk 0:00:56]}  Rg4 {[%clk 0:00:21]} 30. Kf3 {[%clk 0:00:51]}  Ke6 {[%clk 0:00:17]} 31. Re1+ {[%clk 0:00:44]}  Kf6 {[%clk 0:00:18]} 32. Re5 {[%clk 0:00:42]}  h4 {[%clk 0:00:18]} 33. Rxd5 {[%clk 0:00:31]}  h3 {[%clk 0:00:18]} 34. Rd6+ {[%clk 0:00:28]}  Kg7 {[%clk 0:00:17]} 35. Be5+ {[%clk 0:00:28]}  Kh7 {[%clk 0:00:16]} 36. Rd8 {[%clk 0:00:25]}  f6 {[%clk 0:00:15]} 37. Bg3 {[%clk 0:00:15]}  Kg6 {[%clk 0:00:16]} 38. Rg8+ {[%clk 0:00:13]}  Kh5 {[%clk 0:00:15]} 39. Rh8+ {[%clk 0:00:13]}  Kg6 {[%clk 0:00:15]} 40. Rxh3 {[%clk 0:00:13]}  Re4 {[%clk 0:00:16]} 41. Rh1 {[%clk 0:00:10]}  a6 {[%clk 0:00:16]} 42. Rb1 {[%clk 0:00:10]}  Re6 {[%clk 0:00:15]} 43. d5 {[%clk 0:00:10]}  Re4 {[%clk 0:00:15]} 44. Rxb6 {[%clk 0:00:09]}  a5 {[%clk 0:00:16]} 45. Re6 {[%clk 0:00:07]}  Rg4 {[%clk 0:00:15]} 46. d6 {[%clk 0:00:06]}  Kf7 {[%clk 0:00:16]} 47. Re7+ {[%clk 0:00:06]}  Kf8 {[%clk 0:00:17]} 48. Re2 {[%clk 0:00:05]}  Rg7 {[%clk 0:00:17]} 49. Bf4 {[%clk 0:00:04]}  Rb7 {[%clk 0:00:17]} 50. Rd2 {[%clk 0:00:05]}  Rd7 {[%clk 0:00:17]} 51. Rd4 {[%clk 0:00:05]}  Kf7 {[%clk 0:00:18]} 52. Rxc4 {[%clk 0:00:05]}  Ke6 {[%clk 0:00:19]} 53. Rd4 {[%clk 0:00:06]}  Rd8 {[%clk 0:00:19]} 54. c4 {[%clk 0:00:06]}  Rc8 {[%clk 0:00:19]} 55. d7 {[%clk 0:00:06]}  Rd8 {[%clk 0:00:19]} 56. c5 {[%clk 0:00:07]}  Rxd7 {[%clk 0:00:20]} 57. Rxd7 {[%clk 0:00:07]}  Kxd7 {[%clk 0:00:21]} 58. Ke3 {[%clk 0:00:07]}  Kc6 {[%clk 0:00:22]} 59. Kd4 {[%clk 0:00:08]}  Kd7 {[%clk 0:00:22]} 60. Kd5 {[%clk 0:00:08]}  Ke7 {[%clk 0:00:22]} 61. Bd2 {[%clk 0:00:09]}  Kf7 {[%clk 0:00:23]} 62. Bxa5 {[%clk 0:00:09]}  Kg6 {[%clk 0:00:24]} 63. Bd2 {[%clk 0:00:10]}  Kh5 {[%clk 0:00:25]} 64. c6 {[%clk 0:00:11]}  Kg4 {[%clk 0:00:26]} 65. c7 {[%clk 0:00:11]}  Kf3 {[%clk 0:00:27]} 66. c8=Q {[%clk 0:00:12]}  f4 {[%clk 0:00:28]} 67. Qf5 {[%clk 0:00:11]}  Kxf2 {[%clk 0:00:29]} 68. Qxf4+ {[%clk 0:00:12]}  Ke2 {[%clk 0:00:30]} 69. Qxf6 {[%clk 0:00:12]}  Kd1 {[%clk 0:00:30]} 70. c4 {[%clk 0:00:11]}  Kc2 {[%clk 0:00:31]} 71. c5 {[%clk 0:00:12]}  Kd1 {[%clk 0:00:32]} 72. c6 {[%clk 0:00:13]}  Ke2 {[%clk 0:00:33]} 73. c7 {[%clk 0:00:13]}  Kd1 {[%clk 0:00:34]} 74. c8=Q {[%clk 0:00:13]}  Ke2 {[%clk 0:00:35]} 75. Qce6+ {[%clk 0:00:13]}  Kd1 {[%clk 0:00:36]} 76. Qf1+ {[%clk 0:00:13]}  Kc2 {[%clk 0:00:36]} 77. Qc6+ {[%clk 0:00:13]}  Kb2 {[%clk 0:00:36]} 78. Qcc1+ {[%clk 0:00:13]}  Kb3 {[%clk 0:00:36]} 79. Qfc4# {[%clk 0:00:13]} 1-0


[Site "https://www.chess.com"]

[Event "Titled Tuesday Blitz January 03 Early 2023"]
[White "Kanakaris, Georgios"]
[Black "Melaugh, Shane"]
[WhiteFideId "4209460"]
[BlackFideId "2509580"]
[WhiteElo "2391"]
[BlackElo "2115"]
[Result "0-1"]
[Round "05"]
[TimeControl "180+2"]
[Date "2023.01.03"]
[WhiteClock "0:00:06"]
[BlackClock "0:00:30"]

1. d4 {[%clk 0:03:00]}  e6 {[%clk 0:02:59]} 2. Nf3 {[%clk 0:03:01]}  f5 {[%clk 0:02:59]} 3. g3 {[%clk 0:03:00]}  Nf6 {[%clk 0:02:56]} 4. Bg2 {[%clk 0:03:00]}  Be7 {[%clk 0:02:57]} 5. c4 {[%clk 0:03:00]}  O-O {[%clk 0:02:55]} 6. Nc3 {[%clk 0:03:01]}  d6 {[%clk 0:02:55]} 7. O-O {[%clk 0:03:00]}  Nc6 {[%clk 0:02:53]} 8. d5 {[%clk 0:02:53]}  Na5 {[%clk 0:02:53]} 9. b3 {[%clk 0:02:47]}  e5 {[%clk 0:02:53]} 10. Nd2 {[%clk 0:02:15]}  b6 {[%clk 0:02:51]} 11. b4 {[%clk 0:02:13]}  Nb7 {[%clk 0:02:51]} 12. Bb2 {[%clk 0:02:10]}  Qe8 {[%clk 0:02:45]} 13. Nb5 {[%clk 0:02:06]}  Bd8 {[%clk 0:02:45]} 14. Qb3 {[%clk 0:02:01]}  Qh5 {[%clk 0:02:38]} 15. Nf3 {[%clk 0:01:54]}  f4 {[%clk 0:02:30]} 16. Rac1 {[%clk 0:01:17]}  Ng4 {[%clk 0:01:57]} 17. h3 {[%clk 0:01:11]}  Nf6 {[%clk 0:01:50]} 18. h4 {[%clk 0:00:50]}  fxg3 {[%clk 0:01:03]} 19. fxg3 {[%clk 0:00:51]}  Ne4 {[%clk 0:01:03]} 20. Nxe5 {[%clk 0:00:42]}  Rxf1+ {[%clk 0:00:47]} 21. Rxf1 {[%clk 0:00:43]}  Nd2 {[%clk 0:00:47]} 22. Qc3 {[%clk 0:00:11]}  Nxf1 {[%clk 0:00:47]} 23. Nd7 {[%clk 0:00:08]}  Qf7 {[%clk 0:00:33]} 24. Bxf1 {[%clk 0:00:05]}  Bxd7 {[%clk 0:00:31]} 25. Nd4 {[%clk 0:00:06]}  Bf6 {[%clk 0:00:30]} 0-1


[Site "https://www.chess.com"]

[Event "Titled Tuesday Blitz January 03 Early 2023"]
[White "Bayramov, Zaur"]
[Black "MIM06"]
[WhiteFideId "13405080"]
[WhiteElo "2276"]
[BlackElo "2273"]
[Result "1-0"]
[Round "05"]
[TimeControl "180+2"]
[Date "2023.01.03"]
[WhiteClock "0:00:45"]
[BlackClock "0:00:04"]

1. d4 {[%clk 0:02:59]}  Nf6 {[%clk 0:02:59]} 2. Nf3 {[%clk 0:02:59]}  g6 {[%clk 0:02:59]} 3. Bg5 {[%clk 0:02:59]}  Bg7 {[%clk 0:02:59]} 4. Nbd2 {[%clk 0:03:00]}  d5 {[%clk 0:02:58]} 5. e3 {[%clk 0:03:00]}  O-O {[%clk 0:02:58]} 6. Bd3 {[%clk 0:02:59]}  c5 {[%clk 0:02:58]} 7. c3 {[%clk 0:02:59]}  Nc6 {[%clk 0:02:58]} 8. O-O {[%clk 0:02:59]}  Nd7 {[%clk 0:02:56]} 9. h3 {[%clk 0:02:52]}  Qb6 {[%clk 0:02:41]} 10. Rb1 {[%clk 0:02:52]}  f6 {[%clk 0:02:32]} 11. Bh4 {[%clk 0:02:49]}  e5 {[%clk 0:02:31]} 12. dxc5 {[%clk 0:02:31]}  Nxc5 {[%clk 0:02:30]} 13. Be2 {[%clk 0:02:31]}  Bf5 {[%clk 0:02:23]} 14. b4 {[%clk 0:02:25]}  Ne4 {[%clk 0:02:03]} 15. Nxe4 {[%clk 0:02:24]}  Bxe4 {[%clk 0:02:04]} 16. Rc1 {[%clk 0:02:24]}  Kh8 {[%clk 0:01:54]} 17. a3 {[%clk 0:02:18]}  Rac8 {[%clk 0:01:51]} 18. c4 {[%clk 0:02:15]}  dxc4 {[%clk 0:01:36]} 19. Rxc4 {[%clk 0:02:13]}  Rcd8 {[%clk 0:01:31]} 20. Qc1 {[%clk 0:02:08]}  Bd5 {[%clk 0:01:27]} 21. Rc5 {[%clk 0:02:06]}  e4 {[%clk 0:01:22]} 22. Nd2 {[%clk 0:02:02]}  Ne5 {[%clk 0:01:18]} 23. Bg3 {[%clk 0:01:57]}  Nd3 {[%clk 0:01:12]} 24. Bxd3 {[%clk 0:01:57]}  exd3 {[%clk 0:01:13]} 25. Bc7 {[%clk 0:01:57]}  Qe6 {[%clk 0:01:09]} 26. Bxd8 {[%clk 0:01:57]}  Rxd8 {[%clk 0:01:10]} 27. e4 {[%clk 0:01:58]}  Bc6 {[%clk 0:00:34]} 28. Re1 {[%clk 0:01:57]}  Bf8 {[%clk 0:00:32]} 29. Rc3 {[%clk 0:01:52]}  Bd6 {[%clk 0:00:31]} 30. Re3 {[%clk 0:01:36]}  Qe5 {[%clk 0:00:22]} 31. Nf3 {[%clk 0:01:36]}  Qf4 {[%clk 0:00:19]} 32. Rcxd3 {[%clk 0:01:35]}  Bxe4 {[%clk 0:00:16]} 33. Rd4 {[%clk 0:01:29]}  f5 {[%clk 0:00:14]} 34. Qc3 {[%clk 0:01:24]}  Kg8 {[%clk 0:00:10]} 35. Qc4+ {[%clk 0:01:24]}  Kg7 {[%clk 0:00:09]} 36. Rdxe4 {[%clk 0:01:22]}  fxe4 {[%clk 0:00:08]} 37. Rxe4 {[%clk 0:01:22]}  Qf7 {[%clk 0:00:08]} 38. Qc3+ {[%clk 0:01:19]}  Kg8 {[%clk 0:00:07]} 39. Rd4 {[%clk 0:01:18]}  Be7 {[%clk 0:00:06]} 40. Rxd8+ {[%clk 0:01:16]}  Bxd8 {[%clk 0:00:06]} 41. Ne5 {[%clk 0:01:16]}  Qd5 {[%clk 0:00:06]} 42. g3 {[%clk 0:01:09]}  Bf6 {[%clk 0:00:05]} 43. Qc8+ {[%clk 0:01:07]}  Kg7 {[%clk 0:00:05]} 44. Ng4 {[%clk 0:01:05]}  Bd4 {[%clk 0:00:04]} 45. Qc7+ {[%clk 0:01:03]}  Kf8 {[%clk 0:00:03]} 46. Qf4+ {[%clk 0:01:02]}  Kg8 {[%clk 0:00:02]} 47. Nf6+ {[%clk 0:00:59]}  Bxf6 {[%clk 0:00:02]} 48. Qxf6 {[%clk 0:00:59]}  Qd1+ {[%clk 0:00:03]} 49. Kg2 {[%clk 0:01:00]}  Qd7 {[%clk 0:00:03]} 50. Qf3 {[%clk 0:00:57]}  Qe7 {[%clk 0:00:03]} 51. h4 {[%clk 0:00:57]}  Qd7 {[%clk 0:00:03]} 52. Qe4 {[%clk 0:00:57]}  b6 {[%clk 0:00:03]} 53. Kf3 {[%clk 0:00:56]}  a5 {[%clk 0:00:04]} 54. bxa5 {[%clk 0:00:56]}  bxa5 {[%clk 0:00:05]} 55. a4 {[%clk 0:00:56]}  Qc7 {[%clk 0:00:05]} 56. Qd5+ {[%clk 0:00:55]}  Kg7 {[%clk 0:00:05]} 57. h5 {[%clk 0:00:54]}  Qc3+ {[%clk 0:00:05]} 58. Kg2 {[%clk 0:00:54]}  gxh5 {[%clk 0:00:05]} 59. Qg5+ {[%clk 0:00:54]}  Kh8 {[%clk 0:00:05]} 60. Qxh5 {[%clk 0:00:54]}  Qc6+ {[%clk 0:00:05]} 61. Qf3 {[%clk 0:00:52]}  Qc5 {[%clk 0:00:02]} 62. g4 {[%clk 0:00:50]}  Kg7 {[%clk 0:00:03]} 63. Qe4 {[%clk 0:00:48]}  Qc3 {[%clk 0:00:01]} 64. f4 {[%clk 0:00:47]}  h6 {[%clk 0:00:02]} 65. Qe5+ {[%clk 0:00:44]}  Qxe5 {[%clk 0:00:02]} 66. fxe5 {[%clk 0:00:45]}  Kf7 {[%clk 0:00:03]} 67. Kf3 {[%clk 0:00:45]}  Ke6 {[%clk 0:00:04]} 68. Kf4 {[%clk 0:00:45]} 1-0


[Site "https://www.chess.com"]

[Event "Titled Tuesday Blitz January 03 Early 2023"]
[White "Iljin, Timofey"]
[Black "Alfaro, William"]
[WhiteFideId "14110180"]
[BlackFideId "6100457"]
[WhiteElo "2329"]
[BlackElo "2134"]
[Result "1-0"]
[Round "05"]
[TimeControl "180+2"]
[Date "2023.01.03"]
[WhiteClock "0:00:20"]
[BlackClock "0:01:33"]

1. e4 {[%clk 0:03:00]}  c5 {[%clk 0:02:58]} 2. c3 {[%clk 0:03:00]}  d5 {[%clk 0:02:54]} 3. exd5 {[%clk 0:03:00]}  Qxd5 {[%clk 0:02:54]} 4. d4 {[%clk 0:03:01]}  cxd4 {[%clk 0:02:55]} 5. cxd4 {[%clk 0:03:02]}  Nc6 {[%clk 0:02:55]} 6. Nf3 {[%clk 0:03:03]}  Bg4 {[%clk 0:02:55]} 7. Nc3 {[%clk 0:03:03]}  Bxf3 {[%clk 0:02:55]} 8. Nxd5 {[%clk 0:03:03]}  Bxd1 {[%clk 0:02:55]} 9. Nc7+ {[%clk 0:03:04]}  Kd8 {[%clk 0:02:56]} 10. Nxa8 {[%clk 0:03:05]}  Bh5 {[%clk 0:02:56]} 11. Be3 {[%clk 0:02:50]}  e6 {[%clk 0:02:51]} 12. f3 {[%clk 0:02:46]}  Nf6 {[%clk 0:02:49]} 13. Bb5 {[%clk 0:02:25]}  Bb4+ {[%clk 0:02:46]} 14. Kf2 {[%clk 0:02:25]}  Kd7 {[%clk 0:02:46]} 15. h4 {[%clk 0:02:00]}  h6 {[%clk 0:02:29]} 16. g4 {[%clk 0:01:59]}  Bg6 {[%clk 0:02:29]} 17. g5 {[%clk 0:01:59]}  Nd5 {[%clk 0:02:28]} 18. h5 {[%clk 0:01:48]}  Bf5 {[%clk 0:02:26]} 19. gxh6 {[%clk 0:01:37]}  gxh6 {[%clk 0:02:26]} 20. Rhg1 {[%clk 0:01:33]}  Rxa8 {[%clk 0:02:18]} 21. Rg7 {[%clk 0:01:11]}  Nxe3 {[%clk 0:02:14]} 22. Rxf7+ {[%clk 0:01:02]}  Ke8 {[%clk 0:02:11]} 23. Rxb7 {[%clk 0:01:02]}  Rc8 {[%clk 0:01:59]} 24. Kxe3 {[%clk 0:00:58]}  Be7 {[%clk 0:01:53]} 25. Rc1 {[%clk 0:00:49]}  Bg5+ {[%clk 0:01:52]} 26. f4 {[%clk 0:00:49]}  Bf6 {[%clk 0:01:46]} 27. Bxc6+ {[%clk 0:00:46]}  Kf8 {[%clk 0:01:46]} 28. Rc3 {[%clk 0:00:36]}  Rd8 {[%clk 0:01:44]} 29. Bd7 {[%clk 0:00:33]}  Ke7 {[%clk 0:01:38]} 30. Bc8+ {[%clk 0:00:20]}  Kf8 {[%clk 0:01:36]} 31. Rd7 {[%clk 0:00:20]}  Bxd4+ {[%clk 0:01:33]} 32. Rxd4 {[%clk 0:00:20]} 1-0


[Site "https://www.chess.com"]

[Event "Titled Tuesday Blitz January 03 Early 2023"]
[White "Beerdsen, Thomas"]
[Black "Winterberg, Lukas"]
[WhiteFideId "1030108"]
[BlackFideId "24622702"]
[WhiteElo "2507"]
[BlackElo "2402"]
[Result "1-0"]
[Round "05"]
[TimeControl "180+2"]
[Date "2023.01.03"]
[WhiteClock "0:01:40"]
[BlackClock "0:00:28"]

1. e4 {[%clk 0:03:00]}  e6 {[%clk 0:03:00]} 2. d4 {[%clk 0:03:00]}  d5 {[%clk 0:03:01]} 3. Nc3 {[%clk 0:02:57]}  Nf6 {[%clk 0:03:01]} 4. Bd3 {[%clk 0:02:56]}  c5 {[%clk 0:03:00]} 5. dxc5 {[%clk 0:02:53]}  Bxc5 {[%clk 0:02:58]} 6. exd5 {[%clk 0:02:53]}  exd5 {[%clk 0:02:57]} 7. Nf3 {[%clk 0:02:52]}  O-O {[%clk 0:02:57]} 8. O-O {[%clk 0:02:51]}  Nc6 {[%clk 0:02:58]} 9. h3 {[%clk 0:02:51]}  Re8 {[%clk 0:02:57]} 10. Bg5 {[%clk 0:02:51]}  h6 {[%clk 0:02:57]} 11. Bxf6 {[%clk 0:02:50]}  Qxf6 {[%clk 0:02:57]} 12. Nxd5 {[%clk 0:02:51]}  Qd6 {[%clk 0:02:57]} 13. Nc3 {[%clk 0:02:49]}  Bxh3 {[%clk 0:02:26]} 14. gxh3 {[%clk 0:02:30]}  Qg3+ {[%clk 0:02:25]} 15. Kh1 {[%clk 0:02:31]}  Bxf2 {[%clk 0:02:06]} 16. Ne4 {[%clk 0:02:22]}  Qxh3+ {[%clk 0:02:05]} 17. Nh2 {[%clk 0:02:22]}  Bg3 {[%clk 0:01:31]} 18. Nxg3 {[%clk 0:02:20]}  Qxg3 {[%clk 0:01:32]} 19. Rg1 {[%clk 0:02:21]}  Qe5 {[%clk 0:00:53]} 20. Qg4 {[%clk 0:02:18]}  Qxb2 {[%clk 0:00:49]} 21. Rab1 {[%clk 0:02:09]}  Qf6 {[%clk 0:00:49]} 22. Rxb7 {[%clk 0:01:57]}  Ne5 {[%clk 0:00:49]} 23. Qf5 {[%clk 0:01:54]}  Qd6 {[%clk 0:00:29]} 24. Qh7+ {[%clk 0:01:45]}  Kf8 {[%clk 0:00:28]} 25. Qh8# {[%clk 0:01:40]} 1-0


[Site "https://www.chess.com"]

[Event "Titled Tuesday Blitz January 03 Early 2023"]
[White "Rangel, Daniel"]
[Black "Matinian, Nikita"]
[WhiteFideId "2124475"]
[BlackFideId "24129100"]
[WhiteElo "2207"]
[BlackElo "2407"]
[Result "0-1"]
[Round "05"]
[TimeControl "180+2"]
[Date "2023.01.03"]
[WhiteClock "0:00:17"]
[BlackClock "0:02:04"]

1. c4 {[%clk 0:02:40]}  g6 {[%clk 0:02:57]} 2. g3 {[%clk 0:02:35]}  Bg7 {[%clk 0:02:57]} 3. Bg2 {[%clk 0:02:34]}  Nc6 {[%clk 0:02:58]} 4. e3 {[%clk 0:02:30]}  e5 {[%clk 0:02:58]} 5. Ne2 {[%clk 0:02:29]}  h5 {[%clk 0:02:56]} 6. h4 {[%clk 0:02:28]}  d6 {[%clk 0:02:56]} 7. O-O {[%clk 0:02:26]}  Bg4 {[%clk 0:02:54]} 8. Nbc3 {[%clk 0:02:26]}  Qd7 {[%clk 0:02:53]} 9. Nd5 {[%clk 0:02:23]}  O-O-O {[%clk 0:02:52]} 10. b4 {[%clk 0:02:22]}  e4 {[%clk 0:02:48]} 11. Rb1 {[%clk 0:02:11]}  Ne5 {[%clk 0:02:43]} 12. Bb2 {[%clk 0:02:09]}  g5 {[%clk 0:02:30]} 13. hxg5 {[%clk 0:02:03]}  h4 {[%clk 0:02:29]} 14. b5 {[%clk 0:01:57]}  Nf3+ {[%clk 0:02:19]} 15. Bxf3 {[%clk 0:01:49]}  Bxf3 {[%clk 0:02:20]} 16. Nef4 {[%clk 0:01:41]}  Bxd1 {[%clk 0:02:15]} 17. Bxg7 {[%clk 0:01:40]}  Rh7 {[%clk 0:02:12]} 18. Bf6 {[%clk 0:01:30]}  Bf3 {[%clk 0:02:11]} 19. Bxd8 {[%clk 0:01:19]}  Qg4 {[%clk 0:02:10]} 20. Bxc7 {[%clk 0:00:28]}  hxg3 {[%clk 0:02:06]} 21. Bxd6 {[%clk 0:00:17]}  Rh1# {[%clk 0:02:04]} 0-1


[Site "https://www.chess.com"]